Cogmind - Beta 17.1 @@@ ROGUE MODE // 2026.08.28 @ 19:21:09 Player: Bsuter Result: Destroyed by NS-J7P(R) with Subdweller Machine Gun Performance ------------- Evolutions (0) 0 Regions Visited (3) 600 Robots Destroyed (13) 65 Value Destroyed (342) 342 Prototype IDs (0) 0 Alien Tech Used (0) 0 Bonus (0) 0 TOTAL SCORE: 1007 Bonus ------- None Cogmind --------- Core Integrity 0/250 Matter 300/300 Energy 240/240 System Corruption 0% Temperature Cool (0) Movement Walking (190) Ox1 Location -10/Subcaves Parts ------- > --- POWER (1) -------- Nuclear Core > --- PROPULSION (2) --- Aluminum Leg > --- UTILITY (2) ------ Sensor Array Signal Interpreter > --- WEAPON (2) ------- Minigun > --- INVENTORY (5) ---- Light Ion Engine Structural Scanner Hacking Suite Grenade Launcher Mining Laser Peak State ------------ > --- POWER ------------ Light Nuclear Core > --- PROPULSION ------- Aluminum Leg Aluminum Leg > --- UTILITY ---------- Sensor Array Signal Interpreter > --- WEAPON ----------- Field Laser Flak Cannon > --- INVENTORY -------- Light Ion Engine Structural Scanner Hacking Suite Grenade Launcher Mining Laser [Rating: 13] Favorites ----------- Power Light Nuclear Core Engine Ion Engine Power Core Light Nuclear Core Propulsion Aluminum Leg Leg Aluminum Leg Utility Signal Interpreter Device Sensor Array Storage Small Storage Unit Processor Signal Interpreter Weapon Light Assault Rifle Energy Gun Field Laser Ballistic Gun Light Assault Rifle Ballistic Cannon Flak Cannon Special Weapon Mining Laser Build | -11 -10 -10 -10 ------- Run | Yrd Mat Min Sub Slots Evolved . | . . . . Power . | . . . . Propulsion . | . . . . Utility . | . . . . Weapon . | . . . . Parts Attached 18 | 7 6 5 . Power 3 | 1 1 1 . Engine 1 | 1 . . . Core 2 | . 1 1 . Reactor . | . . . . Propulsion 4 | 2 2 . . Treads . | . . . . Leg 4 | 2 2 . . Wheel . | . . . . Hover . | . . . . Flight . | . . . . Utility 4 | 2 2 . . Device 2 | 1 1 . . Storage 1 | 1 . . . Processor 1 | . 1 . . Hackware . | . . . . Protection . | . . . . Artifact . | . . . . Weapon 7 | 2 1 4 . Energy Gun 2 | . . 2 . Energy Cannon . | . . . . Ballistic Gun 3 | 2 . 1 . Ballistic Cannon 1 | . . 1 . Launcher . | . . . . Special Weapon 1 | . 1 . . Impact Weapon . | . . . . Slashing Weapon . | . . . . Piercing Weapon . | . . . . Special Melee Weapon . | . . . . Unidentified Prototypes . | . . . . Parts Lost 2 | . . . 2 Power . | . . . . Propulsion 1 | . . . 1 Utility . | . . . . Weapon 1 | . . . 1 Highest Loss Streak 2 | . . . 2 To Critical Strikes . | . . . . Average Backups 4 | 1 4 4 5 Power . | . 1 1 1 Propulsion . | . 1 . . Utility 1 | . . 1 2 Weapon 2 | . 2 2 2 Tool/Special . | . . . . Unused Backups 6 | . . 2 4 Power 1 | . . . 1 Propulsion 1 | . . 1 . Utility 2 | . . . 2 Weapon 2 | . . 1 1 Tool/Special . | . . . . Average Slot Usage (%) 99 | . 99 99 99 Engine 1 | . 4 . . Core 12 | . 9 14 14 Leg 27 | . 28 28 27 Device 13 | . 13 14 14 Processor 13 | . 13 14 14 Energy Gun 5 | . . 7 13 Ballistic Gun 20 | . 23 20 14 Special Weapon 1 | . 4 . . Peak Build Rating 13 | 7 9 13 13 Average Rating 10 | 5 8 10 12 On Entrance 7 | . 7 9 13 Avg Prop Armor Cover (%) . | . . . . Naked Turns . | . . . . Heaviest Build 14 | 14 14 14 14 Greatest Support 20 | 20 20 20 20 Greatest Overweight (x) 1 | . . . 1 Average Overweight (x) . | . . . . Largest Inventory Capacity 8 | 8 8 5 5 Average Capacity 5 | 6 5 5 5 Most Carried 5 | 4 5 5 5 Average Carried 4 | 1 4 4 5 Final Capacity 8 | 8 5 5 5 Final Carried 5 | 4 5 5 5 Class Distribution -------------------- 100% | Mutant Dominant Class ---------------- Mutant | -10/Materials Mutant | -10/Mines Mutant | -10/Subcaves Resources | -11 -10 -10 -10 ----------- Run | Yrd Mat Min Sub Matter Collected 554 | 218 262 62 12 Remotely . | . . . . Salvage Created 512 | 55 380 35 42 Parts 29 | 6 16 5 2 Haulers Intercepted . | . . . . Recyclers Shooed 1 | . 1 . . Parts Field Recycled . | . . . . Retrieved Matter . | . . . . Parts Self-Destructed 5 | . . . 5 Prevented . | . . . . Parts Restored . | . . . . Kills | -11 -10 -10 -10 ------- Run | Yrd Mat Min Sub Combat Hostiles Destroyed 9 | . 6 2 1 Guns 9 | . 6 2 1 Classes Destroyed 6 | 1 4 1 . Tunneler 2 | 2 . . . Recycler 1 | . 1 . . Watcher 1 | . 1 . . Swarmer 2 | . . 2 . Grunt 5 | . 5 . . Subdweller 2 | . 1 . 1 Best Kill Streak 2 | 2 2 2 1 Combat Bots Only 2 | . 2 2 1 Max Kills in Single Turn 1 | 1 1 1 1 Gunslinging . | . . . . Exploded . | . . . . Melee . | . . . . Uniques/NPCs Destroyed . | . . . . Combat | -11 -10 -10 -10 -------- Run | Yrd Mat Min Sub Hostile Shots Fired 68 | . 37 7 24 Missed 24 | . 13 2 9 Hits 44 | . 24 5 15 Projectile 44 | . 24 5 15 AOE 1 | . . . 1 Damage Taken 847 | . 347 54 446 Core 271 | . 97 . 174 Absorbed by Shields . | . . . . Core Remaining (%) 100 | 100 . . . Volleys Fired 56 | 6 44 3 3 Largest 2 | 2 2 2 2 Hottest 120 | 40 120 88 88 Shots Fired 96 | 12 72 6 6 Gun 93 | 12 69 6 6 Cannon . | . . . . Launcher . | . . . . Special 3 | . 3 . . Kinetic 87 | 12 69 3 3 Thermal 9 | . 3 3 3 Explosive . | . . . . Electromagnetic . | . . . . Robot Hit Streak 14 | 6 14 4 5 Robot Miss Streak 3 | 1 3 1 1 Penetration Max . | . . . . Secondary Targets 1 | . . 1 . Max Gunslinging Chain 1 | . . 1 . Shots Hit Robots 64 | 9 46 4 5 Core Hits 29 | 3 21 3 2 Critical Kills . | . . . . Critical Parts Destroyed 1 | . 1 . . Critical Strikes 1 | . 1 . . Destroy 1 | . 1 . . Melee Attacks . | . . . . Impact . | . . . . Slashing . | . . . . Piercing . | . . . . Sneak Attacks . | . . . . Combat Hostiles . | . . . . Follow-up Attacks . | . . . . Damage Inflicted 729 | 98 447 95 89 Guns 696 | 95 447 65 89 Cannons . | . . . . Explosions . | . . . . Melee . | . . . . Ramming 33 | 3 . 30 . Kinetic 610 | 95 447 14 54 Thermal 86 | . . 51 35 Explosive . | . . . . Electromagnetic . | . . . . Impact . | . . . . Slashing . | . . . . Piercing . | . . . . Highest Corruption . | . . . . Average Corruption . | . . . . Corruption Purged . | . . . . Corruption Blocked . | . . . . Overload Shots . | . . . . Overflow Damage . | . . . . Projectiles . | . . . . Explosions . | . . . . Melee . | . . . . Knockbacks 1 | . . 1 . Impact 1 | . . 1 . Kinetic . | . . . . Secondary . | . . . . Self-Inflicted Damage . | . . . . Shots . | . . . . Rammed . | . . . . Targets Rammed 6 | 1 . 5 . Kicked 6 | 1 . 5 . Crushed . | . . . . Highest Temperature 120 | . 100 120 24 Average Temperature 23 | . 16 61 13 Received Heat Transfer 228 | . 171 9 48 Siege Activations . | . . . . Martial Activations . | . . . . Shielding Activations . | . . . . Robots Disrupted . | . . . . Combat Hostiles . | . . . . Robots Corrupted . | . . . . Combat Hostiles . | . . . . Parts Fried . | . . . . Impact Corruptions . | . . . . Robots Melted . | . . . . Combat Hostiles . | . . . . Parts Melted . | . . . . Heat Transferred 185 | . . 111 74 Parts Sabotaged . | . . . . Parts Stolen . | . . . . Parts Stripped . | . . . . Power Chain Reactions . | . . . . Alert | -11 -10 -10 -10 ------- Run | Yrd Mat Min Sub Maximum Alert Level . | . . . . Low Security (%) 100 | 100 100 100 . Level 1 . | . . . . Level 2 . | . . . . Level 3 . | . . . . Level 4 . | . . . . Level 5 . | . . . . High Security . | . . . . Max Security . | . . . . Peak Influence 41 | 5 41 40 . Initial . | . . . . Average 4 | . 8 2 . Influence Increases 208 | 10 158 40 . Destroy 0b10 Robot/C 140 | . 100 40 . Destroy 0b10 Robot/NC 20 | 10 10 . . Destroy Leader 32 | . 32 . . Disable Machine 15 | . 15 . . Destroy Structure 1 | . 1 . . Influence Decreases 208 | 10 158 40 . Time Decay 208 | 10 158 40 . Squads Dispatched 4 | . 3 1 . Investigation 2 | . 1 1 . Extermination . | . . . . Reinforcement 2 | . 2 . . Assault . | . . . . Garrison . | . . . . Intercept . | . . . . Searches Triggered . | . . . . Construction Impeded . | . . . . Haulers Reinforced . | . . . . Active Scanning Responses . | . . . . Cargo Convoy Interrupts . | . . . . Stealth | -11 -10 -10 -10 --------- Run | Yrd Mat Min Sub Distress Signals . | . . . . Communications Jammed . | . . . . Distress Signals . | . . . . Times Spotted 21 | . 11 3 7 Peak Tracking Total 4 | . 3 2 4 Tactical Retreats . | . . . . Traps | -11 -10 -10 -10 ------- Run | Yrd Mat Min Sub Traps Triggered 3 | . 1 . 2 Indirectly . | . . . . Trap Hack Attempts . | . . . . Triggered . | . . . . Disarmed . | . . . . Reprogrammed . | . . . . Reused . | . . . . Traps Extracted . | . . . . Installed . | . . . . Triggered . | . . . . Machines | -11 -10 -10 -10 ---------- Run | Yrd Mat Min Sub Machines Disabled 1 | . 1 . . Max in Single Turn 1 | . 1 . . Machines Repaired . | . . . . Machines Dismantled . | . . . . Machines Sabotaged . | . . . . Overloaded Fab Kills . | . . . . Hacking | -11 -10 -10 -10 --------- Run | Yrd Mat Min Sub Machines Accessed 2 | . 1 1 . Terminals 1 | . 1 . . Fabricators . | . . . . Repair Stations . | . . . . Recycling Units . | . . . . Scanalyzers . | . . . . Garrison Access . | . . . . Total Hacks 3 | . 2 1 . Successful 2 | . 1 1 . Failed 1 | . 1 . . Catastrophic . | . . . . Database Lockouts . | . . . . Manual 2 | . 2 . . Terminals 2 | . 2 . . Fabricators . | . . . . Repair Stations . | . . . . Recycling Units . | . . . . Scanalyzers . | . . . . Garrison Access . | . . . . Terminal Hacks 2 | . 1 1 . Open Door 1 | . . 1 . Recall Investigation 1 | . 1 . . Fabricator Hacks . | . . . . Repair Station Hacks . | . . . . Recycling Unit Hacks . | . . . . Scanalyzer . | . . . . Garrison Access Hacks . | . . . . Unauthorized Hacks . | . . . . Terminals . | . . . . Fabricators . | . . . . Repair Stations . | . . . . Recycling Units . | . . . . Scanalyzers . | . . . . Garrison Access . | . . . . Data Cores Recovered . | . . . . Used . | . . . . Hacking Detections 1 | . 1 . . Full Trace Events . | . . . . Feedback Events . | . . . . Feedback Blocked . | . . . . Robot Schematics Acquired . | . . . . Robots Built . | . . . . Authchips . | . . . . Time . | . . . . Total Robot Build Rating . | . . . . Part Schematics Acquired . | . . . . Parts Built . | . . . . Authchips . | . . . . Time . | . . . . Total Part Build Rating . | . . . . Part Studies Acquired . | . . . . Parts Repaired . | . . . . Time . | . . . . Parts Recycled . | . . . . Recycled Matter . | . . . . Retrieved Matter . | . . . . Retrieved Components . | . . . . Parts Scanalyzed . | . . . . Part Schematics Acquired . | . . . . Parts Damaged . | . . . . Bothacking | -11 -10 -10 -10 ------------ Run | Yrd Mat Min Sub Used RIF Installer . | . . . . Robots Hacked . | . . . . Non-combat . | . . . . Combat . | . . . . Robot Hacks Applied . | . . . . Relay Couplers Released . | . . . . Fabnet Peak Effective % . | . . . . Robots Rewired . | . . . . Allies Hacked . | . . . . Hacks Repelled . | . . . . Allies | -11 -10 -10 -10 -------- Run | Yrd Mat Min Sub Total Allies . | . . . . Largest Group . | . . . . Highest-Rated Group . | . . . . Highest-Rated Ally . | . . . . Total Orders . | . . . . Ally Attacks . | . . . . Total Damage . | . . . . Kills . | . . . . Allies Corrupted . | . . . . Allies Melted . | . . . . Intel | -11 -10 -10 -10 ------- Run | Yrd Mat Min Sub Active Infowar (turns) 2344 | 5 771 1235 333 Sensors 2305 | . 737 1235 333 Seismic 39 | 5 34 . . Robot Analysis Total . | . . . . Derelict Logs Recovered 2 | . . 2 . Drone Launches . | . . . . Drone Recoveries . | . . . . Exploration | -11 -10 -10 -10 ------------- Run | Yrd Mat Min Sub Turns Passed 2429 | 84 777 1235 333 Spaces Moved 1796 | 48 477 1005 266 Core 7 | 7 . . . Treads . | . . . . Legs 1789 | 41 477 1005 266 Wheels . | . . . . Hover . | . . . . Flight . | . . . . Fastest Speed 50 | 50 120 120 120 Average Speed 119 | 109 120 120 121 Slowest Speed 190 | 120 120 120 190 Overloaded Moves . | . . . . Propulsion Burnouts . | . . . . Robots Hopped . | . . . . Potential Cave-ins . | . . . . Cave-ins Triggered . | . . . . Exploration Rate (%) 43 | 3 52 98 20 Regions Visited 3 Branch Regions 2 Pre-discovered Areas 1 | . . 1 . Known Exits Taken 2 | . 1 1 . Unknown Exits Taken 1 | 1 . . . Scrap Searched 1 | . . 1 . Spaces Dug . | . . . . Terrain Destroyed . | . . . . Melee . | . . . . Projectile . | . . . . AOE . | . . . . Terrain Rammed . | . . . . Walls Destroyed . | . . . . Machines Disabled . | . . . . Actions | -11 -10 -10 -10 --------- Run | Yrd Mat Min Sub Total 1977 | 65 613 1029 270 Wait 83 | . 79 3 1 Move 1793 | 47 476 1004 266 Hop . | . . . . Pick Up 7 | 4 1 2 . Fast Attach 14 | 7 3 4 . Attach . | . . . . Detach 1 | . 1 . . Swap 5 | . 4 1 . Drop 12 | . 5 7 . Fire 56 | 6 44 3 3 Melee . | . . . . Ram . | . . . . Kick 6 | 1 . 5 . Crush . | . . . . Escape Stasis . | . . . . Rewire . | . . . . Trap . | . . . . Miscellaneous . | . . . . Route ------- -11/Scrapyard -10/Materials (discovered 3 exits: *Mat x2 / *Min) -10/Mines (discovered 3 exits: *Mat x2 / *Sub) -10/Subcaves (discovered 1 exit: *Mat) History --------- Turn | Location | Event 44 | -11/Scrapyard | Discovered new exit (range 16) 85 | -11/Scrapyard | Entered Materials 189 | -10/Materials | Discovered new exit (range 13) 205 | -10/Materials | Identified exit to Mines 316 | -10/Materials | Build established: Mutant 376 | -10/Materials | Discovered new exit (range 14) 449 | -10/Materials | Discovered new exit (range 15) 685 | -10/Materials | Derelicts attacked the area 862 | -10/Materials | Entered Mines 998 | -10/Mines | Learned 2 Materials zone layouts 1036 | -10/Mines | Discovered new exit (range 7) 1058 | -10/Mines | Discovered new exit (range 7) 1068 | -10/Mines | Identified exit to Materials 1450 | -10/Mines | Joined a pair of Derelicts in attacking an 0b10 outpost 1529 | -10/Mines | Met a Derelict shopkeep closing up shop 1974 | -10/Mines | Found a damaged Exp. Sensor Array with a note attached 1994 | -10/Mines | Discovered new exit (range 7) 2005 | -10/Mines | Identified exit to Subcaves 2097 | -10/Mines | Entered Subcaves 2098 | -10/Subcaves | Approached by a straggling Scientist 2214 | -10/Subcaves | Discovered new exit (range 9) 2239 | -10/Subcaves | Identified exit to Materials 2242 | -10/Subcaves | Ambushed by angry Subdweller bent on revenge 2313 | -10/Subcaves | Core integrity fell below 50% 2421 | -10/Subcaves | Core integrity fell below 20% 2430 | -10/Subcaves | Destroyed by NS-J7P(R) with Subdweller Machine Gun Last Messages --------------- 02249_ W2-G9V(R) destroyed. ZE-TVP(c): "I think it's somewhere northeast of here" 02255_ Subatomizers dissect the Wheel. 02262_ Acquired 12 matter. 02266_ Subatomizers dissect the Sub. Optics. ZE-TVP(c): "I think it's somewhere northeast of here" 02312_ Triggered Piercing Trap. 02312_ Spikes shoot up from the floor. 02312_ Critical hit (Impale). 02333_ Triggered Shrapnel Trap. 02333_ An expanding cloud of shrapnel blasts out in all directions. ZE-TVP(c): "I think it's somewhere east of here" ZE-TVP(c): "I think it's somewhere northeast of here" 02421_ Aluminum Leg destroyed. 02424_ Field Laser destroyed. Map ----- +----------------------------------------------------+ | ????????????????????????????????????????????????? | | ????????????????????????????????????????????????? | | ????????????????????????????????????????????????? | | ????????????????????????????????????????????????? | | ????????????????????????????????????????????????? | | ????????????????????????????????????????????????? | | ????????????????????????????????????????????????? | | ????????????????????????????????????????????????? | | ????????????????????????????????????????????????? | | ????????????????????????????????????????????????? | | ????????????????????????????????????????????????? | | ?????????????????????#??????????????????????????? | | ???????????????????## ??????????????????????????? | | ??????????????????## ?????????????????????????? | | ??????????????????# ?????????????????????????? | | ??????????????????? ?????????????????????????? | | ??????????????????? ?????????????????????????? | | ???????????????????? #####????????????????????? | | ????????????????????# ?????????????????????? | | ????????????????????# ?????????????????????? | | ????????????????????# #?????????????????????? | | ????????????????????# #?##? #???????????????? | | ????????????????????# # # ????????????????? | | ?????????????????????# # ??????????????????? | | ????###??????????????# ????????????????????? | | ##### ######????????## @#?????????????????????? | | # #???????## ##?????????????????????? | | #????????# RR #??????????????????????? | | #???????## #??????????????????????? | | ###???????# ##??????????????????????? | | #?????????# ###???????????????????????? | | #?????????# ##????????????????????????? | | "##?????????# #????????????????????????? | | "# "#####???????## X ##???????????????????????? | | ####### #?###????## X ##??????????????????????? | | ### #?# ##????##x ##?????????????????????? | | #?# ##????# #?????????????????????? | | ### #????## ##?????????????????????? | | ## #????# ##?? ??????????????????? | | ###### ##"""""#??????????????? | | ### ## "" #??????????????? | | # ####### "# #??????????????? | | ## "##??####### ### ##??????????????? | | ### " #????????## ###??# "#???????????????? | | ?# "##????????## #????#"##???????????????? | | ## # #####?????????# #?????"#????????????????? | | # ###????????????# """"""#????????????????????? | | ## ####?????????"" "" ""##????????????????????? | | ###""????"" ""##""" ????????????????????? | | " """"??""##"???????????????????? | +----------------------------------------------------+ Best States ------------- Heat Dissipation 25 Energy Generation 14 Energy Capacity 250 Matter Stores 300 Matter Capacity 300 Sight Range 16 Robot Scan Range 14 Terrain Scan Density 10 Evasion (%) 55 Item Schematics ----------------- None Robot Schematics ------------------ None Fabricated ------------ Nothing Repaired ---------- Nothing Studied --------- None Alien Tech Used ----------------- None Achievements -------------- GoHome() Challenges ------------ None Game ------ Seed GreaterProtonCorpse Manual? 0 Play Time 00:17:42 Cumulative 12.5 hours Start 2026.08.28 @ 19:04:27 End 2026.08.28 @ 19:21:09 Sessions 1 Manual Loads 0 Difficulty Rogue Special Mode None Game No. 19 Rogue 19 Adventurer 0 Explorer 0 Win Type - Total 0 Types 0/0/0/0/0/0/0/0/0/0 Lore% 8 Gallery% 12 Achievement% 11 Wizard Run 0 Options --------- Layout 1 ASCII 0 Keyboard 1 Movement Arrows Keybinds 1 Fullscreen 2 Font 36/Smallcaps Map View 50x40 Zoom Use 0% Tactical HUD 1 Map Filters NONE Filters NONE Steam 1 RUN: dda8cf8f-5cc3-4ac9-8d14-059cae788cc1